bitfinex/quotes_ETHUSD_20240715
["timestamp","ask_amount","ask_price","bid_price","bid_amount"]
[1721038407617,2.2513,3351.2,3350.9,0.07319728]
[1721038407826,2.2513,3351.2,3350.7,2.98438]
[1721038408042,2.2513,3351.2,3350.8,1.091]
[1721038408209,2.2513,3351.2,3350.8,1.16425809]
[1721038408611,2.2513,3351.2,3350.8,4.14860809]
[1721038409449,2.87493042,3351.2,3350.8,4.14860809]
[1721038409810,2.87493042,3351.2,3350.8,3.05760809]
[1721038410262,2.2513,3351.2,3350.8,3.05760809]
[1721038411134,2.87493042,3351.2,3350.8,3.05760809]
[1721038411318,2.2678,3351.1,3350.8,3.05760809]
[1721038412286,2.2678,3351.1,3350.8,0.07325809]
[1721038412417,2.2678,3351.1,3350.6,7.07549]
[1721038412619,2.2678,3351.1,3350.9,0.07036422]
[1721038412861,2.2678,3351.1,3350.6,7.07549]
[1721038413028,2.2678,3351.1,3351.0,0.07030341]
[1721038413237,2.2678,3351.1,3350.8,2.98429]
[1721038413420,2.2678,3351.1,3351.0,0.07030341]
[1721038413620,2.2678,3351.1,3350.8,4.07529]
[1721038413956,2.2678,3351.1,3350.9,0.07039107]
[1721038414184,2.2678,3351.1,3350.9,3.05466107]
[1721038418740,2.2678,3351.1,3350.9,0.07039107]
[1721038418925,2.55696006,3351.1,3350.9,0.07039107]
[1721038419125,2.55696006,3351.1,3350.6,1.091]
[1721038419359,2.2678,3351.1,3351.0,0.07031683]
[1721038419561,2.2678,3351.1,3350.6,4.091]
[1721038419864,2.2678,3351.1,3350.7,2.98439]
[1721038420076,2.2678,3351.1,3350.7,3.05488927]
[1721038420227,2.2678,3351.1,3350.7,6.03925927]
[1721038420449,2.2678,3351.1,3350.7,3.05486927]
[1721038423744,2.2678,3351.1,3350.8,2.98435]
[1721038424162,2.2678,3351.1,3350.9,0.06910764]
[1721038427068,2.2678,3351.1,3350.9,3.05336764]
[1721038427262,2.2678,3351.1,3351.0,2.98418]
[1721038427480,2.2678,3351.1,3351.0,3.05323522]
[1721038428759,2.2678,3351.1,3351.0,0.06905522]
[1721038429293,2.2678,3351.1,3351.0,0.06905187]
[1721038429466,2.2678,3351.1,3350.9,2.98422]
[1721038429783,2.2678,3351.1,3351.0,0.06905187]
[1721038430463,2.2678,3351.1,3350.8,2.98433]
[1721038430794,2.2678,3351.1,3351.0,0.06905187]
[1721038430967,2.2678,3351.1,3350.9,0.06911268]
[1721038431172,2.2678,3351.1,3351.0,0.06905187]
[1721038431570,2.2678,3351.1,3350.8,2.98433]
[1721038431798,2.2678,3351.1,3351.0,0.06905187]
[1721038432306,2.2678,3351.1,3350.9,2.98426]
[1721038432623,2.2678,3351.1,3351.0,3.05323187]
[1721038437810,2.2678,3351.1,3351.0,0.06905187]
[1721038438135,3.00543527,3351.1,3351.0,0.06905187]
[1721038439205,3.00543527,3351.1,3350.8,2.98435]
[1721038439402,3.00543527,3351.1,3351.0,0.06905744]
[1721038439403,2.2678,3351.1,3351.0,0.06905744]
[1721038439633,2.38141713,3351.1,3350.9,0.06911825]
[1721038439823,2.38141713,3351.1,3350.8,2.98435]
[1721038439824,2.2678,3351.1,3351.0,0.06905744]
[1721038440026,2.38141444,3351.1,3351.0,0.06905744]
[1721038440231,2.38141444,3351.1,3350.8,2.98435]
[1721038440447,2.2678,3351.1,3351.0,0.06905744]
[1721038440737,2.38141349,3351.1,3351.0,0.06905744]
[1721038440932,2.38141349,3351.1,3350.8,2.98435]
[1721038441121,0.73900996,3351.0,3350.8,2.98435]
[1721038441327,0.62539647,3351.0,3350.8,2.98435]
[1721038443038,2.2678,3351.1,3350.8,2.98435]
[1721038443240,0.73916045,3351.0,3350.8,2.98435]
[1721038443449,2.4804,3350.9,3350.5,2.98456]
[1721038443603,3.10595049,3350.9,3350.5,2.98456]
[1721038443939,2.4804,3350.8,3350.5,2.98456]
[1721038448650,3.10599629,3350.8,3350.5,4.07556]
[1721038451521,2.4804,3350.8,3350.5,4.07556]
[1721038451729,3.10599629,3350.8,3350.5,4.07556]
[1721038452316,3.10599629,3350.8,3350.6,0.06930574]
[1721038452717,2.3047,3350.7,3350.6,0.06930574]
[1721038452913,2.98462,3350.5,3349.9,0.4678972]
[1721038453152,2.3047,3350.2,3349.9,0.4678972]
[1721038453455,2.3047,3350.1,3349.7,3.01]
[1721038453606,2.3047,3350.0,3349.7,3.01]
[1721038454273,2.3047,3350.0,3349.4,4.07657]
[1721038454419,2.3047,3350.0,3349.5,4.02332825]
[1721038454625,2.3047,3350.0,3349.5,2.98549]
[1721038454823,2.3047,3350.0,3349.6,1.091]
[1721038455255,2.3047,3350.0,3349.6,4.0764]
[1721038455822,2.3047,3350.0,3349.8,1.091]
[1721038457061,2.3047,3350.0,3349.6,7.06176]
[1721038457525,2.3047,3350.0,3349.6,4.07636]
[1721038458138,2.3047,3350.0,3349.7,2.98533]
[1721038463209,2.3047,3350.0,3349.3,7.41]
[1721038463210,2.53517,3350.0,3349.4,2.98556]
[1721038464121,2.53517,3350.0,3349.4,4.07656]
[1721038466079,2.53517,3350.0,3349.5,2.98551]
[1721038466403,2.3047,3350.0,3349.5,2.98551]
[1721038466794,2.3047,3350.0,3349.6,1.091]
[1721038467408,2.3047,3350.0,3349.7,0.0658922]
[1721038473716,2.3047,3350.0,3349.8,2.98522]
[1721038473920,2.3047,3350.0,3349.7,0.0658922]
[1721038474090,2.3047,3350.0,3349.8,0.06583582]
[1721038474296,2.3047,3350.0,3349.6,2.98542]
[1721038474608,2.3047,3350.0,3349.9,0.06577273]
[1721038474809,2.3047,3350.0,3349.6,2.98542]
[1721038475022,2.3047,3350.0,3349.9,0.06577273]
[1721038475224,2.3047,3350.0,3349.6,2.98542]
[1721038475379,2.3047,3350.0,3349.9,0.06577273]
[1721038475580,2.3047,3350.0,3349.6,2.98542]
[1721038475807,2.3047,3350.0,3349.9,0.06577273]
[1721038476010,2.3047,3350.0,3349.6,2.98542]
[1721038476230,2.3047,3350.0,3349.9,0.06577273]
[1721038476416,2.3047,3350.0,3349.6,2.98542]
[1721038476615,2.3047,3350.0,3349.9,0.06577273]
[1721038476832,2.3047,3350.0,3349.8,1.091]
[1721038477026,2.3047,3350.0,3349.9,0.06577273]
[1721038477309,2.3047,3350.0,3349.9,3.05093273]
[1721038477509,2.2504,3350.7,3350.1,2.98495]
[1721038477781,2.2504,3350.7,3350.1,4.07595]
[1721038477985,2.2504,3350.7,3350.2,0.06559076]
[1721038479915,2.4436,3350.6,3350.2,0.06559076]
[1721038482541,2.2657,3350.3,3349.8,2.98525]
[1721038483112,2.2657,3350.3,3349.9,2.98511]
[1721038485730,2.2657,3350.3,3349.9,4.07611]
[1721038487425,2.2657,3350.3,3350.1,2.98493]
[1721038487832,2.2657,3350.3,3349.9,7.06119]
[1721038488016,2.2657,3350.3,3349.7,2.98529]
[1721038488258,2.2657,3350.3,3349.7,4.07629]
[1721038488994,2.2657,3350.3,3349.7,2.98529]
[1721038489288,2.4666,3350.2,3349.7,2.98529]
[1721038489857,2.4666,3350.2,3349.5,4.07643]
[1721038490891,2.4666,3350.2,3349.6,2.98537]
[1721038492059,2.4666,3350.2,3349.7,4.07631]
[1721038492264,2.4666,3350.2,3349.8,2.98519]
[1721038492488,2.4666,3350.2,3349.9,4.07615]
[1721038493289,2.4666,3350.2,3350.1,4.07598]
[1721038494008,2.4666,3350.2,3350.1,2.98498]
[1721038494370,2.4666,3350.2,3349.9,4.07609]
[1721038497409,2.4666,3350.2,3350.0,0.06571636]
[1721038497571,2.4666,3350.2,3350.1,2.98498]
[1721038497768,2.4666,3350.2,3350.1,3.05063552]
[1721038502316,2.4666,3350.2,3350.1,0.06565552]
[1721038502530,2.77551832,3350.2,3350.1,0.06565552]
[1721038502816,2.77551832,3350.2,3349.2,4.24886011]
[1721038502817,2.4169,3350.1,3349.3,2.98569]
[1721038503135,0.62342357,3349.8,3349.4,2.9856]
[1721038503309,0.62342357,3349.8,3349.6,2.98539]
[1721038503624,0.62342357,3349.8,3349.7,7.06168]
[1721038504497,0.62342357,3349.8,3349.7,10.06168]
[1721038505391,0.62342357,3349.8,3349.7,13.04702]
[1721038505815,0.62342357,3349.8,3349.7,13.59702]
[1721038512304,0.62342357,3349.8,3349.7,13.66291611]
[1721038513637,0.62342357,3349.8,3349.7,16.96016816]
[1721038515558,2.2843,3350.6,3349.7,11.11437229]
[1721038515695,2.4933,3351.1,3350.5,1.091]
[1721038515901,2.4933,3351.1,3350.9,1.091]
[1721038516120,2.4933,3351.1,3350.9,4.0752]
[1721038516432,2.4933,3351.1,3351.0,3.04923268]
[1721038516728,2.4933,3351.1,3351.0,0.06505268]
[1721038517290,2.4933,3351.1,3350.7,4.07542]
[1721038517291,2.4933,3351.1,3350.7,2.98442]
[1721038517600,3.1108155,3351.1,3350.8,0.06517039]
[1721038517801,3.1108155,3351.1,3350.8,2.98435]
[1721038518108,3.1108155,3351.1,3350.9,0.06510958]
[1721038518698,2.4933,3351.1,3350.9,0.06510958]
[1721038519303,2.4933,3351.1,3351.0,2.98418]
[1721038519626,2.4933,3351.1,3351.0,3.04922485]
[1721038529716,2.4933,3351.1,3351.0,0.06504485]
[1721038530117,2.4933,3351.1,3350.6,5.98447]
[1721038530442,2.4933,3351.1,3350.7,0.06517355]
[1721038530815,2.4933,3351.1,3350.6,5.98447]
[1721038531013,2.4933,3351.1,3350.8,0.06511273]
[1721038531221,2.4933,3351.1,3350.6,5.98447]
[1721038531445,2.4933,3351.1,3350.9,0.06505192]
[1721038531606,2.4933,3351.1,3350.6,5.98447]
[1721038532147,2.4933,3351.1,3350.7,0.06517355]
[1721038532331,3.041021,3351.1,3350.4,7.41]
[1721038532507,2.98444,3350.8,3350.5,0.0652952]
[1721038532847,5.96887,3350.8,3350.0,3.50135208]
[1721038533144,6.7993745,3350.8,3350.0,2.98502]
[1721038533305,6.7993745,3350.8,3350.1,0.06349189]
[1721038533515,6.7993745,3350.8,3350.1,1.15449189]
[1721038533749,2.98445,3350.7,3350.1,1.15449189]
[1721038535457,2.2558,3350.6,3350.1,1.15449189]
[1721038535811,2.2558,3350.6,3350.3,1.091]
[1721038536211,2.2558,3350.6,3350.5,1.091]
[1721038536611,2.2558,3350.6,3350.5,1.15428549]
[1721038536808,2.2558,3350.6,3350.5,4.13890549]
[1721038556878,2.2558,3350.6,3350.5,3.04790549]
[1721038558087,2.2558,3350.6,3350.5,0.06328549]
[1721038558254,2.84220974,3350.6,3350.5,0.06328549]
[1721038558462,2.3727,3350.5,3350.1,2.98496]
[1721038559890,2.3727,3350.5,3350.1,4.07596]
[1721038569792,2.3727,3350.5,3349.7,1.55660479]
[1721038569988,0.62416219,3350.2,3349.4,1.091]
[1721038570303,2.2661,3350.0,3349.5,2.98552]
[1721038571596,2.4728,3349.8,3349.3,2.98562]
[1721038572310,2.4728,3349.8,3349.4,0.06397662]
[1721038575603,2.376,3349.6,3349.4,0.06397662]
[1721038575942,2.376,3349.5,3348.9,3.0]
[1721038576416,2.376,3349.4,3348.9,3.0]
[1721038578116,2.376,3349.4,3349.0,1.091]
[1721038581979,2.376,3349.4,3349.2,1.091]
[1721038582208,2.376,3349.4,3349.2,4.07678]
[1721038583345,2.376,3349.4,3349.2,1.091]
[1721038583831,2.376,3349.4,3349.0,7.06282]
[1721038584740,2.376,3349.4,3349.1,2.98586]
[1721038586398,2.376,3349.4,3348.8,3.1057268]
[1721038586650,2.376,3349.4,3348.8,0.1196268]
[1721038586651,2.9857,3349.3,3348.8,0.1196268]
[1721038586938,2.2811,3349.2,3348.8,0.1196268]
[1721038587512,2.2811,3349.2,3348.9,0.06239134]
[1721038588697,2.2811,3349.2,3349.0,1.091]
[1721038589211,2.2811,3349.2,3349.1,0.06226958]
[1721038589412,2.2811,3349.2,3349.0,1.091]
[1721038589824,2.2811,3349.2,3349.1,0.06194354]
[1721038590231,2.2811,3349.2,3348.8,1.2106268]
[1721038590405,2.2811,3349.2,3349.1,0.06195866]
[1721038590739,2.2811,3349.2,3348.8,1.2106268]
[1721038590901,2.2811,3349.2,3349.1,0.06195866]
[1721038591098,2.2811,3349.2,3348.8,4.1967668]
[1721038591302,2.2811,3349.2,3349.1,0.06195474]
[1721038591545,2.2811,3349.2,3348.8,4.1967668]
[1721038591713,2.2811,3349.2,3349.1,0.0619553]
[1721038591900,2.2811,3349.2,3348.8,4.1967668]
[1721038592102,2.2811,3349.2,3349.1,0.0619553]
[1721038592302,2.2811,3349.2,3348.8,4.1967668]
[1721038592548,2.2811,3349.2,3349.1,0.0619553]
[1721038592753,2.2811,3349.2,3348.8,4.1967668]
[1721038592902,2.2811,3349.2,3349.1,0.0619553]
[1721038593110,2.2811,3349.2,3348.8,4.1967668]
[1721038593616,2.2811,3349.2,3348.9,0.06207707]
[1721038596548,5.26688,3349.2,3348.9,0.06207707]
[1721038596736,2.98578,3349.2,3348.9,0.06207707]
[1721038597042,3.64435255,3349.1,3348.9,0.06207707]
[1721038597248,5.46466,3349.0,3348.9,0.06207707]
[1721038597468,8.52527955,3349.0,3348.9,0.06207707]
[1721038597615,8.52527955,3349.0,3348.8,0.1196268]
[1721038597616,5.43475,3348.9,3348.8,0.1196268]
[1721038597812,2.4487,3348.9,3348.8,0.1196268]
[1721038602430,2.4487,3348.9,3348.8,0.181781]
[1721038602729,2.4487,3348.9,3348.8,0.1196268]
[1721038602930,2.992152,3348.9,3348.8,0.1196268]
[1721038603127,2.992152,3348.9,3348.8,0.1818023]
[1721038603358,2.992152,3348.9,3348.8,0.1196268]
[1721038605663,5.978202,3348.9,3348.8,0.1196268]
[1721038606346,8.964252,3348.9,3348.8,0.1196268]
[1721038609215,9.58597619,3348.9,3348.8,0.1196268]
[1721038609425,8.964252,3348.9,3348.8,0.1196268]
[1721038611230,9.58597619,3348.9,3348.8,0.1196268]
[1721038611414,8.964252,3348.9,3348.8,0.1196268]
[1721038611614,10.055252,3348.9,3348.8,0.1196268]
[1721038612560,8.964252,3348.9,3348.8,0.1196268]
[1721038612718,2.4487,3348.9,3348.8,0.1196268]
[1721038613170,2.4487,3348.9,3348.8,0.17987062]
[1721038619951,5.50941186,3348.9,3348.8,0.1196268]
[1721038620255,2.4487,3348.9,3348.8,0.1196268]
[1721038620417,2.4487,3348.9,3348.8,0.17988687]
[1721038621559,3.60754419,3349.2,3348.8,4.25702687]
[1721038621560,2.3564,3349.2,3348.8,4.25702687]
[1721038622232,2.92975709,3349.6,3348.9,2.98599]
[1721038622437,2.3072,3349.6,3349.2,1.091]
[1721038622637,2.98453,3350.7,3349.2,1.091]
[1721038622638,2.92975709,3350.3,3349.8,2.98525]
[1721038622838,2.92975709,3350.3,3349.8,4.07625]
[1721038623036,2.92975709,3350.3,3349.8,2.98525]
[1721038623227,2.92975709,3350.3,3349.9,0.0576703]
[1721038623438,2.3072,3350.3,3349.9,3.0428303]
[1721038624168,2.3072,3350.3,3349.9,0.0576703]
[1721038624169,5.91456709,3350.3,3349.9,0.0576703]
[1721038624364,7.00697136,3350.3,3349.9,0.0576703]
[1721038624533,7.00697136,3350.3,3349.6,2.98535]
[1721038624534,6.38441427,3350.3,3349.6,2.98535]
[1721038624729,5.29201,3350.3,3349.6,2.98535]
[1721038624934,5.29201,3350.3,3349.7,0.05779201]
[1721038625253,0.69718934,3350.2,3349.7,0.05779201]
[1721038625561,2.98505,3350.1,3349.4,3.0]
[1721038625877,5.9701,3350.1,3349.4,3.0]
[1721038626037,5.9701,3350.1,3349.5,0.05785995]
[1721038627290,5.91445449,3350.3,3349.5,3.64765994]
[1721038627441,5.98908875,3350.3,3349.5,3.64765994]
[1721038628075,2.98491,3350.2,3349.5,3.64765994]
[1721038629211,2.98515,3350.0,3349.5,0.05785995]
[1721038629567,5.37137,3349.9,3349.5,0.05785995]
[1721038629807,5.37137,3349.9,3349.3,3.0]
[1721038630000,5.37137,3349.9,3349.6,0.05779909]
[1721038630201,2.3862,3349.9,3349.3,5.98567]
[1721038630373,2.3862,3349.9,3349.7,0.05773823]
[1721038630572,2.3862,3349.9,3349.4,2.98554]
[1721038631110,2.3862,3349.9,3349.5,0.05787227]
[1721038631686,2.3862,3349.9,3349.5,3.04338227]
[1721038634407,2.3862,3349.9,3349.6,2.98539]
[1721038634924,2.3862,3349.9,3349.7,0.05706722]
[1721038635721,2.9848,3350.3,3349.7,3.04240722]
[1721038635929,2.3862,3350.2,3349.7,3.04240722]
[1721038636085,2.3862,3350.2,3349.8,2.98523]
[1721038636279,2.3862,3350.2,3349.8,3.04219047]
[1721038640571,2.3862,3350.2,3349.9,2.98515]
[1721038640945,2.3862,3350.2,3350.0,0.05683877]
[1721038641640,2.4026,3350.6,3350.0,3.04188877]
[1721038644860,3.41117845,3350.6,3350.0,3.04188877]
[1721038645502,6.39573845,3350.6,3350.0,0.05683877]
[1721038645797,2.366,3350.4,3349.9,2.98514]
[1721038645983,2.366,3350.4,3350.1,0.05677793]
[1721038646158,2.366,3350.4,3350.0,0.05683877]
[1721038646361,3.47180829,3350.4,3350.2,0.05671709]
[1721038646762,3.47180829,3350.4,3349.9,2.98514]
[1721038646961,6.45651829,3350.4,3350.3,0.05665625]
[1721038647204,6.45651829,3350.4,3349.7,2.98526]
[1721038647380,1.00635728,3350.3,3349.7,2.98526]
[1721038647577,1.00635728,3350.3,3349.8,0.05696047]
[1721038648103,1.00635728,3350.3,3349.9,0.05689962]
[1721038648276,1.00635728,3350.3,3349.7,2.98526]
[1721038648480,1.00635728,3350.3,3350.0,0.05683877]
[1721038648678,3.28366973,3350.2,3349.7,2.98526]
[1721038648981,2.3495,3350.2,3350.1,0.05677793]
[1721038649181,2.3495,3350.2,3349.7,2.98526]
[1721038649391,2.3495,3350.2,3350.1,0.05677793]
[1721038649924,2.3495,3350.2,3349.7,2.98526]
[1721038650217,2.3495,3350.2,3350.1,0.05677793]
[1721038650405,3.290584,3350.2,3349.7,2.98526]
[1721038650589,2.3495,3350.2,3350.1,0.05677793]
[1721038650790,2.3495,3350.2,3349.7,5.97053]
[1721038650991,2.3495,3350.2,3350.1,0.05677566]
[1721038651189,2.3495,3350.2,3349.8,2.98523]
[1721038651388,5.32993,3350.5,3350.1,0.05677566]
[1721038651722,5.32993,3350.5,3349.9,2.98516]
[1721038651723,0.940641,3350.4,3350.2,0.05671482]
[1721038652014,0.940641,3350.4,3349.9,2.98516]
[1721038652389,0.940641,3350.4,3350.0,0.0568365]
[1721038654190,2.3453,3350.2,3350.0,0.0568365]
[1721038654516,5.33025,3350.2,3349.5,2.98548]
[1721038654812,5.33025,3350.2,3350.1,0.05677566]
[1721038655017,5.32159,3350.1,3349.3,2.98562]
[1721038655314,5.32159,3350.1,3349.4,3.0]
[1721038655815,5.32159,3350.1,3349.4,5.98558]
[1721038656610,5.39622644,3350.1,3349.4,5.98558]
[1721038656788,6.51547379,3350.1,3349.4,5.98558]
[1721038656991,6.51547379,3350.1,3349.5,2.9855]
[1721038657402,6.44083735,3350.1,3349.5,2.9855]
[1721038657590,5.32159,3350.1,3349.5,2.9855]
[1721038659111,5.32159,3350.1,3349.4,3.0]
[1721038659112,2.2578,3349.9,3349.4,3.0]
[1721038660297,2.2578,3349.9,3349.4,5.98557]
[1721038660614,2.2578,3349.9,3349.6,2.98535]
[1721038662385,2.2578,3349.9,3349.7,0.05701457]
[1721038663033,5.40728332,3349.8,3349.7,0.05701457]
[1721038663185,11.25744878,3349.8,3349.7,0.05701457]
[1721038663383,2.98561,3349.4,3348.8,0.1196268]
[1721038663727,0.62270505,3349.2,3348.9,0.05572034]
[1721038664025,0.62270505,3349.2,3348.8,0.1196268]
[1721038664518,2.3474,3349.3,3348.9,0.05572034]
[1721038664519,2.97010505,3349.3,3348.9,0.05572034]
[1721038664723,0.11329959,3349.2,3348.8,0.1196268]
[1721038665326,0.73600464,3349.2,3348.8,0.1196268]
[1721038665512,0.62270505,3349.2,3348.9,0.05572034]
[1721038666018,2.3474,3349.3,3348.9,0.05572034]
[1721038667226,2.3474,3349.3,3348.9,3.04177034]
[1721038667523,3.91957757,3349.5,3348.9,3.04177034]
[1721038667524,0.62270505,3349.5,3349.1,2.98586]
[1721038667924,0.62270505,3349.5,3349.2,0.0555377]
[1721038668288,2.97010505,3349.6,3349.2,0.0555377]
[1721038670026,0.62270505,3349.5,3349.2,0.0555377]
[1721038670227,4.29724131,3349.5,3349.2,0.0555377]
[1721038670389,2.2685,3349.4,3348.8,0.1196268]
[1721038670589,2.2685,3349.4,3349.3,0.05547683]
[1721038670828,2.2685,3349.4,3348.8,3.1057068]
[1721038671026,2.2685,3349.4,3349.3,0.05547683]
[1721038671231,2.2685,3349.4,3348.8,3.1057068]
[1721038671232,3.09963328,3349.4,3348.8,3.1057068]
[1721038671409,2.2685,3349.4,3349.3,0.05547683]
[1721038671608,2.2685,3349.4,3348.8,3.1057068]
[1721038671806,2.2685,3349.4,3349.3,0.05547683]
[1721038672333,2.2685,3349.4,3348.8,3.1057068]
[1721038672491,2.2685,3349.4,3349.3,0.05547683]
[1721038672814,2.2685,3349.4,3348.8,3.1057068]
[1721038673130,5.2541,3349.4,3348.8,3.1057068]
[1721038673292,5.2541,3349.4,3348.9,0.05572034]
[1721038674330,2.98573,3349.3,3348.9,0.05572034]
[1721038674697,2.2685,3349.4,3348.9,0.05572034]
[1721038676129,2.2685,3349.4,3348.9,3.04176034]
[1721038676428,0.62240768,3349.6,3349.0,0.61475571]
[1721038676642,5.93524768,3349.7,3349.0,0.61475571]
[1721038676796,5.93524768,3349.7,3349.1,0.05567956]
[1721038679203,2.94990768,3349.7,3349.2,2.98575]
[1721038679420,2.94990768,3349.7,3349.2,3.35430186]
[1721038679597,2.3275,3349.7,3349.3,0.05555781]
[1721038679936,2.94990768,3349.7,3349.3,0.05555781]
[1721038681326,2.3275,3349.7,3349.3,0.05555781]
[1721038683835,2.94990768,3349.7,3349.3,0.05555781]
[1721038684152,2.3275,3349.7,3349.3,0.05555781]
[1721038684508,2.3275,3349.7,3349.3,3.64394759]
[1721038684715,2.89560768,3350.0,3349.4,2.98558]
[1721038685041,2.89560768,3350.0,3349.4,3.04107694]
[1721038685814,2.89560768,3350.0,3349.5,2.9855]
[1721038686054,2.89594623,3350.0,3349.5,2.9855]
[1721038686214,2.89594623,3350.0,3349.6,0.05535302]
[1721038686409,3.98794623,3350.0,3349.6,0.05535302]
[1721038686648,2.89594623,3350.0,3349.6,0.05535302]
[1721038688516,2.2732,3350.0,3349.6,0.43595081]
[1721038688710,2.2732,3350.0,3349.6,3.42132081]
[1721038689453,2.2732,3350.0,3349.6,3.04072302]
[1721038689666,2.2732,3350.0,3349.6,0.05535302]
[1721038689952,2.2732,3350.0,3349.1,3.50229336]
[1721038689953,3.04964623,3349.7,3349.1,2.98585]
[1721038690159,3.04964623,3349.7,3348.9,3.50248336]
[1721038690160,6.10963922,3349.7,3348.9,2.98604]
[1721038690361,2.4269,3349.5,3348.9,5.97202]
[1721038690517,2.4269,3349.5,3349.0,2.98594]
[1721038690718,2.49195441,3349.5,3349.0,2.98594]
[1721038691555,3.11470064,3349.5,3349.0,2.98594]
[1721038692155,2.49195441,3349.5,3349.0,2.98594]
[1721038692478,2.49195441,3349.5,3349.1,0.05563074]
[1721038692785,2.49195441,3349.5,3349.0,2.98594]
[1721038692949,2.49195441,3349.5,3349.2,0.05556986]
[1721038693268,2.49195441,3349.5,3349.0,2.98594]
[1721038693269,0.62274623,3349.4,3348.9,2.98598]
[1721038693477,5.55212064,3349.5,3349.3,0.05550899]
[1721038693478,6.17486687,3349.5,3349.3,0.05550899]
[1721038693639,7.11359235,3349.5,3348.9,2.98598]
[1721038693838,6.17486687,3349.5,3349.4,0.05546088]
[1721038694084,6.10022064,3349.5,3348.9,2.98598]
[1721038694439,6.10022064,3349.5,3349.4,0.05546143]
[1721038694646,5.47747441,3349.5,3348.9,2.98598]
[1721038695076,5.47747441,3349.5,3349.0,0.05570825]
[1721038695265,6.10022064,3349.5,3349.0,0.05570825]
[1721038695578,6.10022064,3349.5,3349.1,0.05564738]
[1721038695982,6.10022064,3349.5,3348.9,2.98598]
[1721038696185,6.10022064,3349.5,3349.2,0.0555865]
[1721038696385,6.10022064,3349.5,3348.9,2.98598]
[1721038696567,6.10022064,3349.5,3349.3,0.05552563]
[1721038696777,6.10022064,3349.5,3348.9,2.98598]
[1721038697064,6.10022064,3349.5,3349.4,0.0554914]
[1721038697273,6.21359177,3349.5,3348.9,2.98598]
[1721038697473,6.10022064,3349.5,3348.9,2.98598]
[1721038697783,6.10022064,3349.5,3349.0,0.0557349]
[1721038698083,6.10022064,3349.5,3348.9,2.98598]
[1721038698246,6.10022064,3349.5,3349.1,0.05567402]
[1721038698446,6.10022064,3349.5,3349.0,0.0557349]
[1721038698646,6.10022064,3349.5,3349.2,0.05561314]
[1721038698872,6.10022064,3349.5,3349.3,0.05555227]
[1721038699067,6.10022064,3349.5,3348.9,2.98598]
[1721038699264,6.10022064,3349.5,3349.0,0.0557349]
[1721038699468,6.10022064,3349.5,3348.9,2.98598]
[1721038700005,6.10022064,3349.5,3349.0,0.0557349]
[1721038700365,3.11470064,3349.5,3348.9,5.97195]
[1721038700562,3.11470064,3349.5,3349.1,0.05566903]
[1721038700770,3.11470064,3349.5,3349.0,3.65083759]
[1721038700968,3.11470064,3349.5,3349.2,0.05560815]
[1721038701304,3.11470064,3349.5,3349.3,0.05554728]
[1721038701711,3.11470064,3349.5,3349.4,0.05548641]
[1721038701886,3.11470064,3349.5,3349.0,3.59510768]
[1721038702083,3.11470064,3349.5,3349.1,0.42981892]
[1721038704230,3.11470064,3349.5,3349.1,3.41568892]
[1721038705432,0.62274623,3349.4,3349.1,3.04153903]
[1721038705921,3.11470064,3349.5,3349.1,3.04153903]
[1721038706087,0.62274623,3349.4,3349.1,3.04153903]
[1721038706496,3.11470064,3349.5,3349.1,3.04153903]
[1721038707649,0.62274623,3349.4,3349.1,3.04153903]
[1721038707930,3.11470064,3349.5,3349.1,3.65625261]
[1721038708132,3.11470064,3349.5,3349.1,3.04153903]
[1721038708557,0.11335502,3349.4,3349.1,3.04153903]
[1721038708697,0.62274623,3349.3,3349.1,3.04153903]
[1721038708897,0.62274623,3349.4,3349.1,3.04153903]
[1721038709223,0.62274623,3349.3,3349.1,3.04153903]
[1721038709391,0.62274623,3349.3,3349.1,0.05566903]
[1721038709595,2.50304619,3349.2,3348.8,0.1196268]
[1721038709837,2.3897,3349.2,3348.9,2.98603]
[1721038710006,3.01244623,3349.2,3348.9,2.98603]
[1721038710707,0.62274623,3349.1,3348.9,2.98603]
[1721038710909,3.01244623,3349.2,3349.0,2.98596]
[1721038711996,0.62274623,3349.2,3349.0,2.98596]
[1721038712291,0.62274623,3349.3,3349.0,3.59512168]
[1721038713203,0.62274623,3349.3,3349.1,2.98587]
[1721038715041,0.62274623,3349.3,3349.2,7.06356]
[1721038715231,0.68889538,3349.5,3349.4,2.9856]
[1721038715437,0.06505441,3349.5,3349.4,3.35974589]
[1721038716160,0.06505441,3349.5,3349.4,8.47522715]
[1721038716316,0.06505441,3349.5,3349.4,13.54837412]
[1721038717221,0.62384097,3350.2,3349.9,2.98508]
[1721038717580,2.94844097,3350.3,3350.0,2.98505]
[1721038719159,2.94844097,3350.3,3350.1,2.98498]
[1721038720450,0.62384097,3350.4,3350.3,2.9848]
[1721038720646,0.73723617,3350.4,3350.3,2.9848]
[1721038720842,0.73724058,3350.4,3350.3,2.9848]
[1721038721047,0.62384097,3350.4,3350.3,2.9848]
[1721038721465,0.62336668,3350.4,3350.3,2.9848]
[1721038721683,0.62336668,3350.5,3350.3,2.9848]
[1721038722442,0.62336668,3350.5,3350.4,0.05478532]
[1721038723543,0.62336668,3350.5,3350.4,3.03949532]
[1721038723747,3.02426668,3350.6,3350.4,3.03949532]
[1721038723980,2.4009,3350.6,3350.4,3.03949532]
[1721038727586,2.4009,3350.6,3350.5,2.98462]
[1721038727847,0.2989,3350.7,3350.6,2.98454]
[1721038728255,0.2989,3350.7,3350.6,3.03919535]
[1721038732669,0.2989,3350.8,3350.6,3.03919535]
[1721038736396,0.2989,3350.8,3350.7,2.98445]
[1721038736599,2.4481,3351.1,3350.9,2.98427]
[1721038737114,2.4481,3351.1,3351.0,0.05438549]
[1721038738306,2.4481,3351.1,3351.0,3.03856549]
[1721038738816,2.4481,3351.1,3351.0,0.05438549]
[1721038739115,2.4481,3351.1,3350.6,2.98453]
[1721038739306,2.4481,3351.1,3351.0,0.05438549]
[1721038739605,2.4086,3351.0,3350.6,2.98453]
[1721038740405,2.4086,3351.0,3350.6,2.97953]
[1721038742988,2.4086,3351.0,3350.4,2.98471]
[1721038743189,2.3071,3350.9,3350.4,2.98471]
[1721038743491,2.3071,3350.9,3350.4,2.98464]